[Event "CCT Airthings Masters Play-In 2023"]
[Site "Online"]
[Date "2023.02.03"]
[Round "2"]
[White "Andreikin, Dmitry"]
[Black "Vladimir_"]
[Result "1-0"]
[ECO "D30"]
[WhiteElo "2729"]
[BlackElo "2553"]
[Annotator "TA"]
[PlyCount "51"]
[EventDate "2023.02.03"]
[EventType "swiss"]
[EventCountry "NET"]
[SourceTitle "playchess.com"]
[Source "ChessBase"]
[SourceQuality "1"]
[TimeControl "600+2"]

{[%evp 9,51,30,26,13,47,29,30,24,26,22,31,25,18,12,13,16,27,33,42,36,41,37,120,122,176,141,151,141,154,139,142,106,146,146,120,98,203,141,1010,997,29995,29996,29996,29997]} 1. Nf3 {[%emt 0:00:03]} d5 {[%emt 0:00:05]} 2. d4 {[%emt 0:00:01]} Nf6 {[%emt 0:00:02]} 3. c4 {[%emt 0:00:03]} e6 {[%emt 0:00:02]} 4. Bg5 {[%emt 0:00:08]} a6 {[%emt 0:00:18]} 5. cxd5 {[%emt 0:00:16]} exd5 {[%emt 0:00:02]} 6. e3 {[%emt 0:00:07] D30: Queen's Gambit Declined: Systems without Nc3.} Be6 {[%emt 0:00:08]} 7. Nc3 {[%emt 0:00:33]} Nbd7 {[%emt 0:00:09]} 8. h3 {[%emt 0:00:13] White has an edge.} Bd6 {[%emt 0:00:08]} 9. Bd3 {[%emt 0:00:01]} c6 {[%emt 0:00:10]} 10. O-O {[%emt 0:00:04]} O-O {[%emt 0:00:05]} 11. Nd2 $5 {[%emt 0:00:09][%mdl 4] An interesting side line.} h6 {[%emt 0:00:17]} 12. Bh4 {[%emt 0:00:05] [#]} g5 $146 {[%emt 0:00:25]} ({Predecessor:} 12... c5 13. dxc5 Nxc5 14. Nf3 g5 15. Bg3 Bxg3 16. fxg3 Nh5 17. g4 Ng3 18. Rf2 Nxd3 19. Qxd3 {1-0 Hosseinzadeh,N (2215)-Bekiragaoglu,U (2147) TUR-chT 2nd League 2022 (9.12)}) 13. Bg3 {[%emt 0:00:03]} Bxg3 {[%emt 0:00:06]} 14. fxg3 {[%emt 0:00:00]} Kg7 {[%emt 0:00:32]} 15. g4 {[%emt 0:00:22]} Nb6 {[%emt 0:00:09]} ({Better is} 15... h5 $14) 16. Rf2 $16 {[%emt 0:00:38] White is more active.} Nc4 {[%emt 0:00:20]} (16... Nbd7 $16) 17. Nxc4 {[%emt 0:00:32]} dxc4 {[%emt 0:00:03]} 18. Bc2 {[%emt 0:00:00]} Nd5 {[%emt 0:00:25]} 19. Qf3 {[%emt 0:00:04]} Nb4 {[%emt 0:00:30]} 20. Be4 {[%emt 0:00:37]} Nd3 {[%emt 0:00:20]} 21. Bxd3 {[%emt 0:00:04]} cxd3 {[%emt 0:00:03]} 22. Qe4 $40 {[%emt 0:00:07][%mdl 128] [#] And now Qe5+ would win. White wants a kill.} Qd7 {[%emt 0:00:17]} (22... Bc4 $16) 23. Raf1 {[%emt 0:00:08] Qe5+ would be deadly.} b5 $2 {[%emt 0:00:39][%mdl 8192] Black is weak on the dark squares} (23... f6 $16) 24. Qe5+ $18 {[%emt 0:00:14]} ({Not} 24. Qxd3 Bc4 25. Qc2 (25. Qe4 Rae8 $17) 25... Bxf1 26. Rxf1 Rae8 $11) 24... Kg6 {[%emt 0:00:05]} 25. Rf6+ {[%emt 0:00:09]} Kh7 {[%emt 0:00:02] [#]} 26. Rxh6+ $3 {[%emt 0:00:03][%mdl 576] Decoy, Clearance. Excellently played by Andreikin!   Weighted Error Value: White=0.14 (very precise) /Black=0.57} 1-0

[Event "CCT Airthings Masters Play-In 2023"]
[Site "Online"]
[Date "2023.02.03"]
[Round "2"]
[White "Duda, Jan-Krzysztof"]
[Black "attack2mateU"]
[Result "1-0"]
[ECO "C11"]
[WhiteElo "2729"]
[BlackElo "2566"]
[Annotator "TA"]
[PlyCount "109"]
[EventDate "2023.02.03"]
[EventType "swiss"]
[EventCountry "NET"]
[SourceTitle "playchess.com"]
[Source "ChessBase"]
[SourceQuality "1"]
[TimeControl "600+2"]

{[%evp 15,109,0,6,0,6,0,0,17,6,2,71,-92,-92,-132,-146,-148,-142,-308,-172,-163,-164,-163,0,0,0,-33,0,-908,-104,-86,118,118,118,118,120,0,127,129,121,85,112,120,125,127,162,131,225,226,278,271,285,280,255,255,467,457,472,437,485,434,473,404,587,559,2032,2011,1543,836,1519,950,1523,1503,1110,1068,29955,29957,29949,29954,6079,5181,5102,535,2394,2087,29955,29957,29945,4133,2752,6416,5543,5102,2496,2337,29986,29984]} 1. e4 {[%emt 0:00:08]} e6 {[%emt 0:00:06]} 2. d4 {[%emt 0:00:02]} d5 {[%emt 0:00:01]} 3. Nc3 {[%emt 0:00:05]} Nf6 {[%emt 0:00:02]} 4. e5 {[%emt 0:00:10]} Nfd7 {[%emt 0:00:02]} 5. Nce2 {[%emt 0:00:00]} c5 {[%emt 0:00:02]} 6. c3 {[%emt 0:00:01]} Nc6 {[%emt 0:00:01]} 7. f4 {[%emt 0:00:01]} Be7 {[%emt 0:00:04]} 8. Nf3 {[%emt 0:00:01]} O-O {[%emt 0:00:02]} 9. a3 {[%emt 0:00:03] 9.h4 is becoming the main line. C11: French: Classical System: 4 e5 and 4 Bg5 dxe4.} f6 {[%emt 0:00:31]} 10. b4 {[%emt 0:00:27] was the old line (10.h4).} fxe5 {[%emt 0:00:05]} 11. fxe5 {[%emt 0:00:04] The position is equal.} cxd4 {[%emt 0:00:13]} 12. cxd4 {[%emt 0:00:01]} Nb6 {[%emt 0:00:16] [#]} (12... Qc7 $11) 13. h4 $146 {[%emt 0:00:16] [#]} (13. b5 $16 Na5 14. Nf4) ({Predecessor:} 13. Qd3 Bd7 14. Nf4 Rc8 15. Bd2 Nc4 16. h4 Nxa3 17. Ng5 g6 18. Nxh7 Rf5 19. Qxa3 Rxf4 {0-1 Fischer,A (2282)-Kabisch,T (2318) Oberliga Wuerttemberg 1819 2018 (3)}) 13... Rxf3 $1 $17 {[%emt 0:00:30][%mdl 64] Remove Defender} 14. gxf3 {[%emt 0:00:00]} Bxh4+ {[%emt 0:00:02]} 15. Kd2 {[%emt 0:00:01]} Bd7 $1 {[%emt 0:00:34][%cal Oc6e5][%mdl 1024] Black has strong compensation.} 16. Bb2 $2 {[%emt 0:03:13]} (16. Kc3 $17 Nc4 17. Kc2 (17. Qd3 $2 a5 $19)) 16... Nc4+ {[%emt 0:01:19]} (16... Nxe5 $142 17. Nc3 (17. dxe5 $2 Ba4 $19) 17... Rc8) 17. Kc1 $19 {[%emt 0:00:03]} Be8 {[%emt 0:01:56]} 18. Bh3 {[%emt 0:00:53]} Bg6 $2 {[%emt 0:01:49]} ({Better is} 18... Bf7 $19 {...a5 is the strong threat.} 19. f4 Bf2) 19. Bxe6+ $11 {[%emt 0:00:14]} Kh8 {[%emt 0:00:01] And now ...Bf2 would win.} 20. Qg1 {[%emt 0:00:40] Prevents Bf2.} (20. Rg1 $5 {[%cal Rg1g6]}) 20... Bd3 {[%emt 0:01:43]} (20... N6a5 $5 21. bxa5 Bg5+ 22. Kd1 Nxb2+ 23. Ke1 Qxa5+ 24. Kf1 Qd2 $15) 21. Qg4 $2 {[%emt 0:00:49][%mdl 8192]} (21. Nf4 $2 Qg5 22. Qg4 Qxg4 23. fxg4 Bg5 $19) (21. Rh3 $11 Nxb2 22. Kxb2 Bxe2 23. Qe3) 21... Bg5+ $2 {[%emt 0:00:25]} (21... Bxe2 $2 22. Qxh4 (22. Rxh4 Bd3 $16) 22... Bd3 23. Qxd8+ Rxd8 24. Bc3 $18) (21... Bf2 22. Bc3 Qb6 23. Nf4 Nxd4 24. Ng6+ (24. Nxd3 $2 Ne2+ 25. Kd1 Nxc3+ 26. Kc1 Qe3+ 27. Kc2 Qe2+ {[%mdl 64] Deflection} 28. Kb3 Nd2+ 29. Kc2 Nc4+ 30. Kb3 Qxd3 $19) (24. Bxd5 $2 Nb3+ 25. Kd1 Ne3#) 24... Bxg6 25. Qxg6 (25. Bxd5 $2 Ne2+ 26. Kd1 Nxc3+ 27. Kc1 Be3#) 25... Be3+ 26. Kd1 $17 (26. Kb1 h6 $17)) (21... N6a5 $1 $19 {[%cal Ra5b3] ( -> ...Nb3+)} 22. bxa5 Qxa5) 22. f4 $17 {[%emt 0:00:12]} Bh6 {[%emt 0:00:01]} (22... Qc7 $1 $17 {keeps the pressure on.} 23. Qh3 (23. fxg5 $2 N6xe5 24. dxe5 Nxe5+ {[%mdl 64] Discovered Attack} 25. Bc3 Nxg4 $19) (23. Qxg5 Nd8 $15) 23... N4xe5) 23. Rh3 $16 {[%emt 0:00:48]} Bxe2 {[%emt 0:00:21]} 24. Qxe2 {[%emt 0:00:00]} Nxb2 {[%emt 0:00:14]} 25. Qxb2 {[%emt 0:00:19]} (25. Kxb2 $16 {Qd3 would be deadly.} Nxd4 26. Qg4) 25... Qb6 {[%emt 0:00:02]} (25... Qe7 $1 $11 26. Bxd5 Qd7 27. Rxh6 gxh6 28. Bxc6 Qxc6+ 29. Qc2 Qf3) 26. Kb1 {[%emt 0:00:11]} Nxd4 {[%emt 0:00:02]} 27. Bxd5 {[%emt 0:00:12][%cal Be6d5,Bd5e4,Be4d3,Bd3c4][%mdl 32] Black must now prevent Qf2.} Rd8 {[%emt 0:00:04]} 28. Be4 {[%emt 0:01:04]} Ne6 {[%emt 0:00:24]} 29. Rd3 {[%emt 0:00:25]} Rxd3 {[%emt 0:00:02]} 30. Bxd3 {[%emt 0:00:00]} Nxf4 {[%emt 0:00:00]} (30... Bxf4 $16 31. Ka2 g6) 31. Bc4 $18 {[%emt 0:00:02]} Qc6 {[%emt 0:00:07]} 32. Qd4 {[%emt 0:00:08]} Bg5 {[%emt 0:00:02] [#] Dodges Qd8+} 33. Kb2 $1 {[%emt 0:00:09] Threatens to win with Rf1.} Qg2+ {[%emt 0:00:01] [#]} 34. Kb3 $1 {[%emt 0:00:02][%cal Od4d7] Hoping for Qd7!} b5 $2 {[%emt 0:00:03]} (34... h5 {was called for.} 35. Rg1 (35. Qxa7 Qf3+ 36. Ka2 Qg2+ 37. Kb3 Qf3+ 38. Kc2 Qg2+ 39. Kb3 $11) 35... Qf3+ 36. Qc3 Qxc3+ 37. Kxc3 Be7) 35. Bxb5 {[%emt 0:00:05]} Qf3+ {[%emt 0:00:01]} 36. Qc3 {[%emt 0:00:02]} Qd5+ {[%emt 0:00:01]} 37. Ka4 {[%emt 0:00:03]} h6 {[%emt 0:00:02]} 38. Re1 {[%emt 0:00:06]} Ne6 {[%emt 0:00:01]} (38... Qe6 $142 39. Qc7 Nd5 40. Qb8+ (40. Qxa7 $2 {is a self mate.} Nc3+ 41. Ka5 Bd8+) 40... Kh7 41. Bd3+ (41. Qxa7 $2 {gets mated.} Nc3+ 42. Ka5 Bd8+) 41... g6 42. Qxa7+ Kh8 43. Qb8+ Kg7) 39. Qc4 {[%emt 0:00:03]} Qd2 {[%emt 0:00:02]} 40. Rf1 {[%emt 0:00:08]} Nf4 {[%emt 0:00:05]} 41. e6 {[%emt 0:00:02]} Qd6 {[%emt 0:00:01] [#]} 42. e7 $1 {[%emt 0:00:06][%mdl 64] Deflection} Qxe7 {[%emt 0:00:02]} (42... Bxe7 43. Qxf4) 43. Rxf4 {[%emt 0:00:00]} Bxf4 {[%emt 0:00:01]} 44. Qxf4 {[%emt 0:00:00]} g5 {[%emt 0:00:04]} 45. Qd4+ {[%emt 0:00:03]} Kh7 {[%emt 0:00:01]} 46. Bd3+ {[%emt 0:00:00]} Kg8 {[%emt 0:00:01]} 47. Bc4+ {[%emt 0:00:02]} Kh7 {[%emt 0:00:01]} 48. Kb5 {[%emt 0:00:01]} (48. Ka5 $142 Kg6 49. Ka6) 48... Qe8+ {[%emt 0:00:02]} 49. Ka6 {[%emt 0:00:01][%cal Ob4b5]} Qc8+ {[%emt 0:00:01]} 50. Kxa7 {[%emt 0:00:01]} Qc7+ {[%emt 0:00:02]} 51. Ka6 {[%emt 0:00:00]} Qc6+ {[%emt 0:00:01]} 52. Ka5 {[%emt 0:00:01] Intending b5 and mate.} Qa8+ {[%emt 0:00:03]} 53. Ba6 {[%emt 0:00:01]} Kg6 {[%emt 0:00:03]} 54. b5 {[%emt 0:00:01][%cal Bb4b5,Bb5b6][%mdl 32] White wants to mate with b6.} h5 {[%emt 0:00:01]} 55. b6 {[%emt 0:00:01] What a bad dream for Black. Excellently played by Duda!   Weighted Error Value: White=0.50/Black=0.80} 1-0

[Event "CCT Airthings Masters Play-In 2023"]
[Site "Online"]
[Date "2023.02.03"]
[Round "2"]
[White "mishanick"]
[Black "alexrustemov"]
[Result "1-0"]
[ECO "D17"]
[WhiteElo "2712"]
[BlackElo "2540"]
[Annotator "TA"]
[PlyCount "95"]
[EventDate "2023.02.03"]
[EventType "swiss"]
[EventCountry "NET"]
[SourceTitle "playchess.com"]
[Source "ChessBase"]
[SourceQuality "1"]
[TimeControl "600+2"]

{[%evp 15,95,34,17,17,23,12,17,25,28,19,26,0,20,19,24,22,17,16,100,62,104,96,105,103,131,128,124,134,145,141,145,143,233,228,252,249,255,234,298,275,272,239,327,198,377,284,271,266,620,620,641,636,629,461,547,478,748,758,725,696,658,615,787,700,1667,1640,1504,1429,1893,1555,5747,5527,29973,29974,29978,29979,29979,29979,29978,29979,29994,29995]} 1. d4 {[%emt 0:00:03]} d5 {[%emt 0:00:08]} 2. Nf3 {[%emt 0:00:00]} c6 {[%emt 0:00:04]} 3. c4 {[%emt 0:00:02]} Nf6 {[%emt 0:00:04]} 4. Nc3 {[%emt 0:00:01]} dxc4 {[%emt 0:00:03]} 5. a4 {[%emt 0:00:01]} Bf5 {[%emt 0:00:03]} 6. Ne5 {[%emt 0:00:01]} Nbd7 {[%emt 0:00:01]} 7. Nxc4 {[%emt 0:00:01]} Nb6 {[%emt 0:00:00]} 8. Ne5 {[%emt 0:00:01]} a5 {[%emt 0:00:01]} 9. e3 {[%emt 0:00:01] D17: Slav Defence: 5 a4 Bf5: Lines with 6 Nh4 and 6 Ne5.} g6 {[%emt 0:01:58]} 10. Bd3 {[%emt 0:00:03]} Bxd3 {[%emt 0:00:03]} 11. Nxd3 {[%emt 0:00:00] The position is equal.} Bg7 {[%emt 0:00:18]} 12. O-O {[%emt 0:00:01]} O-O {[%emt 0:00:02]} 13. Bd2 $5 {[%emt 0:00:19][%mdl 4] A promising side line.} Nbd5 {[%emt 0:00:11]} 14. Qb3 {[%emt 0:00:26]} Qb6 {[%emt 0:00:10]} 15. Qxb6 {[%emt 0:00:04]} Nxb6 {[%emt 0:00:02] [#]} 16. Rfc1 $146 {[%emt 0:00:01]} ({Predecessor:} 16. b3 Rfd8 17. Ra2 e6 18. Rc1 Bf8 19. Kf1 Nbd5 20. Nd1 Nd7 21. Ke2 Bg7 22. f4 {1-0 Ivanisevic,I (2629)-Pavlovic,M (2535) Zuerich Jubilee op 2009 (8)}) 16... Nfd5 {[%emt 0:00:17]} (16... Rfd8 $11) 17. Ne4 {[%emt 0:00:03] White now steadily converts the win.} Nd7 {[%emt 0:00:07] [#]} 18. Nec5 $1 {[%emt 0:00:13]} Nxc5 {[%emt 0:00:04]} 19. Rxc5 {[%emt 0:00:01]} Ra7 {[%emt 0:01:54]} 20. Rxa5 {[%emt 0:00:03] White is more active.} (20. Bxa5 $6 Rfa8 21. Be1 Rxa4 22. Rxa4 Rxa4 $11) 20... Rxa5 {[%emt 0:00:06]} 21. Bxa5 {[%emt 0:00:00]} Ra8 {[%emt 0:00:02]} 22. Bd2 {[%emt 0:00:01]} f5 {[%emt 0:00:05]} 23. a5 {[%emt 0:00:03]} b6 {[%emt 0:00:14] [#]} (23... Nc7 $16 {might work better.} 24. g3 Kf7) 24. b4 $1 $18 {[%emt 0:00:05]} Kf7 {[%emt 0:00:08]} 25. Rc1 {[%emt 0:00:07]} Rc8 {[%emt 0:00:04]} 26. Kf1 {[%emt 0:00:37]} Ke6 {[%emt 0:00:03]} 27. Ke2 {[%emt 0:00:07]} Kd7 {[%emt 0:00:35]} 28. f3 {[%emt 0:00:07]} Rb8 {[%emt 0:00:23]} 29. Be1 {[%emt 0:00:26]} e6 $2 {[%emt 0:00:42]} (29... f4 30. e4 (30. Nxf4 Nxf4+ 31. exf4 bxa5 $16) (30. exf4 Bxd4 31. Rc4 Bf6 $16) 30... Nc7) 30. axb6 {[%emt 0:00:25]} Rxb6 {[%emt 0:00:03]} 31. Nc5+ {[%emt 0:00:08]} Kd6 $2 {[%emt 0:00:12]} (31... Kc8 32. Ra1 Bh6 33. Ra8+ (33. Nxe6 Bxe3 34. Ra8+ Rb8 $16) 33... Rb8) 32. Ra1 {[%emt 0:00:03] And now Ra7 would win.} e5 {[%emt 0:00:12]} 33. Ra7 {[%emt 0:00:14][%csl Gc5][%cal Ra7d7]} Nc7 {[%emt 0:00:03]} 34. Kd3 {[%emt 0:00:11]} g5 {[%emt 0:00:08]} 35. Kc4 {[%emt 0:00:27]} Rb8 {[%emt 0:00:32] [#]} (35... f4 $142 36. exf4 exf4 37. Ne4+ Kd7 38. Nxg5 Ra6) 36. Rxc7 $1 {[%emt 0:00:43][%mdl 576] Decoy} Kxc7 {[%emt 0:00:06][%mdl 4096] Endgame KRB-KBN} 37. Na6+ {[%emt 0:00:21]} Kb7 {[%emt 0:00:03]} 38. Nxb8 {[%emt 0:00:01]} Kxb8 {[%emt 0:00:01] KB-KB} 39. d5 {[%emt 0:00:01]} Kc7 {[%emt 0:00:08]} 40. dxc6 {[%emt 0:00:01]} Kxc6 {[%emt 0:00:02]} 41. b5+ {[%emt 0:00:00]} Kd6 {[%emt 0:00:04]} 42. Bb4+ {[%emt 0:00:02]} Ke6 {[%emt 0:00:02]} 43. e4 {[%emt 0:00:04] White wants to mate with b6.} fxe4 {[%emt 0:00:08]} 44. fxe4 {[%emt 0:00:00] White mates.} Bf6 {[%emt 0:00:07]} 45. b6 {[%emt 0:00:01]} Bd8 {[%emt 0:00:02]} 46. Bc5 {[%emt 0:00:01]} g4 {[%emt 0:00:04]} 47. b7 {[%emt 0:00:03]} Kd7 {[%emt 0:00:02]} 48. b8=Q {[%emt 0:00:02] Weighted Error Value: White=0.19 (very precise) /Black=0.58} 1-0

[Event "CCT Airthings Masters Play-In 2023"]
[Site "Online"]
[Date "2023.02.03"]
[Round "2"]
[White "Baku_Boulevard"]
[Black "Mitrabha, Guha"]
[Result "0-1"]
[ECO "B10"]
[WhiteElo "2701"]
[BlackElo "2510"]
[Annotator "TA"]
[PlyCount "84"]
[EventDate "2023.02.03"]
[EventType "swiss"]
[EventCountry "NET"]
[SourceTitle "playchess.com"]
[Source "ChessBase"]
[SourceQuality "1"]
[TimeControl "600+2"]

{[%evp 9,83,19,28,27,31,33,27,18,101,89,153,99,89,88,85,31,30,31,31,114,33,27,27,33,31,31,38,27,37,40,31,39,34,5,73,14,68,0,0,0,22,4,18,0,0,-25,-13,-31,-25,-25,-26,-25,-22,-18,-20,-14,-26,-15,-26,-473,-460,-452,-445,-576,-227,-429,-562,-551,-560,-549,-506,-546,-549,-1233,-1163,-29999]} 1. e4 {[%emt 0:00:03]} c6 {[%emt 0:00:40]} 2. Nf3 {[%emt 0:00:02]} d5 {[%emt 0:00:03]} 3. e5 {[%emt 0:00:01]} Bg4 {[%emt 0:00:04]} 4. Be2 {[%emt 0:00:01]} e6 {[%emt 0:00:01]} 5. O-O {[%emt 0:00:01]} Nd7 {[%emt 0:00:17]} 6. d4 {[%emt 0:00:02] B10: Caro-Kann: 2 d3 and 2 c4.} Ne7 {[%emt 0:00:01]} 7. Nbd2 {[%emt 0:00:01]} c5 {[%emt 0:00:01] 7...c5 was played by the boomers.} 8. c4 {[%emt 0:00:41] [#] White has an edge.} dxc4 $146 {[%emt 0:01:04]} (8... Nc6 $11) ({Predecessor:} 8... cxd4 9. Nxd4 Bxe2 10. Qxe2 a6 11. Re1 Nc6 12. Nxc6 bxc6 13. Nf3 Bc5 14. Be3 Bxe3 15. Qxe3 {½-½ Fleury,F (2377)-Markus,R (2484) Remote Superturnier 19 email 2013}) 9. Nxc4 $16 {[%emt 0:00:02][%cal Rc4d6] [#]} Nd5 {[%emt 0:00:04]} (9... Nc6 $142) 10. Ng5 {[%emt 0:00:19]} ({White should try} 10. Bg5 Qc7 11. Rc1) 10... Bxe2 {[%emt 0:00:07]} 11. Qxe2 {[%emt 0:00:01]} N7b6 {[%emt 0:01:09] [#]} 12. Nxb6 {[%emt 0:02:08]} ({But not} 12. Qf3 Qd7 13. Nxb6 axb6 $11) (12. dxc5 $1 $16 Bxc5 13. Ne4 (13. Qh5 g6 $11) 13... Nxc4 14. Nxc5 (14. Qxc4 Be7 $11)) 12... axb6 $14 {[%emt 0:00:26]} 13. Qb5+ {[%emt 0:00:01]} Qd7 {[%emt 0:00:01]} 14. Qxd7+ {[%emt 0:00:01]} Kxd7 {[%emt 0:00:00]} 15. Nxf7 {[%emt 0:00:01]} Rg8 {[%emt 0:00:00]} 16. dxc5 {[%emt 0:00:18]} bxc5 {[%emt 0:00:21]} 17. Ng5 {[%emt 0:00:04]} h6 {[%emt 0:00:04]} 18. Ne4 {[%emt 0:00:01]} Be7 {[%emt 0:00:01]} 19. Bd2 {[%emt 0:00:05]} b5 {[%emt 0:00:17]} 20. Rfc1 {[%emt 0:00:09]} Rgc8 {[%emt 0:00:29]} 21. f3 {[%emt 0:00:03]} Ra6 {[%emt 0:00:11]} (21... b4 $11 {keeps the balance.}) 22. Kf2 {[%emt 0:00:04]} ({White should play} 22. a3 $16) 22... c4 {[%emt 0:00:01]} (22... b4 $1 $11) 23. Ke2 {[%emt 0:00:05]} (23. a3 $14) 23... b4 $11 {[%emt 0:00:11]} 24. g3 {[%emt 0:00:31]} Rac6 {[%emt 0:00:13]} 25. Be1 {[%emt 0:00:13]} Ra6 {[%emt 0:01:20]} 26. f4 {[%emt 0:00:38]} g5 {[%emt 0:00:33]} 27. Kf3 {[%emt 0:00:34]} Rac6 {[%emt 0:00:31]} 28. Rd1 {[%emt 0:00:18][%cal Oe1b4]} gxf4 {[%emt 0:00:12]} (28... c3 {looks sharper.} 29. bxc3 bxc3 30. Rd3 c2) 29. gxf4 {[%emt 0:00:02]} c3 {[%emt 0:00:01]} 30. bxc3 {[%emt 0:00:01]} bxc3 {[%emt 0:00:01] And now ...c2 would win.} 31. Rac1 {[%emt 0:00:01]} c2 {[%emt 0:00:12]} 32. Rd3 {[%emt 0:00:01]} Ke8 {[%emt 0:00:12]} 33. f5 {[%emt 0:03:03]} exf5 {[%emt 0:00:29]} 34. Ng3 {[%emt 0:00:02][%mdl 8192] Now White is beyond hope.} (34. Nd6+ $1 $11 Bxd6 35. exd6 Rxd6 36. Rd2) 34... Bg5 $19 {[%emt 0:00:38]} 35. Rxc2 {[%emt 0:00:23]} Rxc2 {[%emt 0:00:02]} 36. Rxd5 {[%emt 0:00:00]} Kf7 $2 {[%emt 0:00:24]} (36... Rxh2 $2 {perishes.} 37. Nxf5 Ra8 38. Rb5 $19) (36... R8c4 37. Nh5 Kf7 38. e6+ {[%mdl 64] Discovered Attack} Kxe6) 37. Rd6 $2 {[%emt 0:00:18]} (37. Nxf5 {was called for.} Ke6 38. Ne3 Rf8+ 39. Ke4 Rf4+ 40. Kd3 Rxa2 41. h4 Bxh4 42. Bc3) 37... R8c4 {[%emt 0:00:02]} ({Worse is} 37... Rxh2 38. Nxf5 Ra8 39. Bb4 $17) 38. e6+ {[%emt 0:00:36]} Ke8 {[%emt 0:00:01]} 39. Nh5 {[%emt 0:00:04]} Ke7 {[%emt 0:00:13]} 40. Rb6 {[%emt 0:00:08]} Re4 {[%emt 0:00:06][%csl Gg5][%cal Re4e3]} 41. Bb4+ {[%emt 0:00:02]} Kd8 {[%emt 0:00:04][%csl Gg5][%cal Re4e3]} 42. a3 {[%emt 0:00:06]} Re3# {[%emt 0:00:01] A cool game by Mitrabha.   Weighted Error Value: White=0.69/Black=0.25 (precise)} 0-1